bitfinex/quotes_BTCUSD_20240723
["timestamp","ask_amount","ask_price","bid_price","bid_amount"]
[1721735479196,0.00083,66849.0,66848.0,0.63474334]
[1721735479448,0.00083,66849.0,66848.0,0.63617674]
[1721735479657,0.00083,66849.0,66848.0,0.63474334]
[1721735480108,0.00083,66849.0,66848.0,1.27953759]
[1721735480314,0.00083,66849.0,66848.0,1.64262359]
[1721735480529,0.00083,66849.0,66848.0,1.64235276]
[1721735480761,0.00083,66849.0,66848.0,1.94153876]
[1721735481392,0.00083,66849.0,66848.0,1.64235276]
[1721735481807,0.00083,66849.0,66848.0,1.62835276]
[1721735482053,0.00083,66849.0,66848.0,1.61435276]
[1721735482265,0.00083,66849.0,66848.0,1.54155276]
[1721735482903,0.00083,66849.0,66848.0,1.55555276]
[1721735483546,0.00083,66849.0,66848.0,1.67844123]
[1721735483758,0.00083,66849.0,66848.0,1.8547589]
[1721735485232,0.00083,66849.0,66848.0,1.8777589]
[1721735486758,0.00083,66849.0,66848.0,1.87690004]
[1721735486964,0.00083,66849.0,66848.0,1.55471404]
[1721735487391,0.00083,66849.0,66848.0,1.85390004]
[1721735490227,0.00083,66849.0,66848.0,1.87690004]
[1721735492828,0.00083,66849.0,66848.0,1.87787896]
[1721735493448,0.00083,66849.0,66848.0,2.17706496]
[1721735494281,0.00083,66849.0,66848.0,2.18305696]
[1721735495446,0.00083,66849.0,66848.0,1.88387096]
[1721735496077,0.00083,66849.0,66848.0,2.18281108]
[1721735497856,0.00083,66849.0,66848.0,1.88362508]
[1721735499154,0.00083,66849.0,66848.0,1.88399387]
[1721735502187,0.00083,66849.0,66848.0,1.78069188]
[1721735502396,0.00083,66849.0,66848.0,1.88388204]
[1721735504260,0.00083,66849.0,66848.0,1.97068204]
[1721735504669,0.00083,66849.0,66848.0,2.11538864]
[1721735504878,0.00083,66849.0,66848.0,2.85689436]
[1721735505057,0.00083,66849.0,66848.0,2.92397226]
[1721735505296,0.00083,66849.0,66848.0,2.34870973]
[1721735505502,0.00083,66849.0,66848.0,2.90926531]
[1721735505701,0.00083,66849.0,66848.0,2.57752365]
[1721735505909,0.00083,66849.0,66848.0,2.27833765]
[1721735506114,0.00083,66849.0,66848.0,2.26433765]
[1721735506314,0.00083,66849.0,66848.0,2.57752365]
[1721735506463,0.00083,66849.0,66848.0,2.59152365]
[1721735507203,0.00083,66849.0,66848.0,2.60552365]
[1721735507403,0.00083,66849.0,66848.0,2.30633765]
[1721735507606,0.00083,66849.0,66848.0,2.22645397]
[1721735507758,0.00083,66849.0,66848.0,2.23925702]
[1721735507959,0.00083,66849.0,66848.0,2.73925702]
[1721735508373,0.00083,66849.0,66848.0,2.74091162]
[1721735509733,0.00083,66849.0,66848.0,2.78561436]
[1721735509936,0.00083,66849.0,66848.0,3.52261436]
[1721735510979,0.00083,66849.0,66848.0,2.93581436]
[1721735511189,0.00083,66849.0,66848.0,3.02261436]
[1721735511610,0.00083,66849.0,66848.0,3.08431675]
[1721735514600,0.00083,66849.0,66848.0,2.16807895]
[1721735514813,0.00083,66849.0,66848.0,2.34890346]
[1721735516606,0.00083,66849.0,66848.0,2.34890912]
[1721735517764,0.00083,66849.0,66848.0,2.3472004]
[1721735518087,0.30083,66849.0,66848.0,2.3472004]
[1721735518288,0.30083,66849.0,66848.0,2.34719206]
[1721735519802,0.30083,66849.0,66848.0,3.08419206]
[1721735520901,0.30083,66849.0,66848.0,2.90508461]
[1721735521024,0.30083,66849.0,66848.0,3.08418739]
[1721735521434,0.30083,66849.0,66848.0,3.12890138]
[1721735522726,0.30083,66849.0,66848.0,3.12854084]
[1721735523670,0.30083,66849.0,66848.0,3.08381006]
[1721735523919,0.30083,66849.0,66848.0,2.63833392]
[1721735524218,0.38233,66849.0,66848.0,1.22094163]
[1721735524423,0.38233,66849.0,66848.0,0.87557255]
[1721735524622,0.38233,66849.0,66848.0,1.0137959]
[1721735524845,0.38233,66849.0,66848.0,0.8582109]
[1721735524846,0.44643,66849.0,66848.0,0.8582109]
[1721735525837,0.44643,66849.0,66848.0,0.8162109]
[1721735526033,0.44643,66849.0,66848.0,0.8302109]
[1721735526236,0.44643,66849.0,66848.0,0.8442109]
[1721735528496,0.38233,66849.0,66848.0,1.2944233]
[1721735528696,0.38233,66849.0,66848.0,0.9952373]
[1721735528900,0.38233,66849.0,66848.0,0.9938039]
[1721735529102,0.38233,66849.0,66848.0,1.3623039]
[1721735529306,0.38233,66849.0,66848.0,1.7308039]
[1721735529907,0.38233,66849.0,66848.0,1.62624868]
[1721735530363,0.38233,66849.0,66848.0,1.62758083]
[1721735531364,0.38233,66849.0,66848.0,1.92676683]
[1721735531578,0.38233,66849.0,66848.0,1.47798783]
[1721735531772,0.38233,66849.0,66848.0,0.74098783]
[1721735533412,0.38233,66849.0,66848.0,0.56100991]
[1721735533567,0.38233,66849.0,66848.0,0.65410765]
[1721735533568,0.48176035,66849.0,66848.0,0.65410765]
[1721735533970,0.48176035,66849.0,66848.0,0.54922986]
[1721735534173,0.53032695,66849.0,66848.0,0.54922986]
[1721735534379,0.57974968,66849.0,66848.0,0.54922986]
[1721735534784,0.57974968,66849.0,66848.0,0.53522986]
[1721735535636,0.57974968,66849.0,66848.0,0.52122986]
[1721735535852,0.57974968,66849.0,66848.0,0.53522986]
[1721735536395,0.57974968,66849.0,66848.0,0.44620991]
[1721735536633,0.57974968,66849.0,66848.0,0.53480542]
[1721735536844,0.57974968,66849.0,66848.0,0.54880542]
[1721735537060,0.68834339,66849.0,66848.0,0.54880542]
[1721735537492,0.68834339,66849.0,66848.0,0.47420991]
[1721735537709,0.57956963,66849.0,66848.0,0.47420991]
[1721735538333,0.72915963,66849.0,66848.0,0.32719]
[1721735538770,1.17314186,66849.0,66848.0,0.31319]
[1721735539000,1.42752163,66849.0,66848.0,0.32719]
[1721735539671,1.52511642,66849.0,66848.0,0.32719]
[1721735539884,1.45794989,66849.0,66848.0,0.31319]
[1721735540323,1.45794989,66849.0,66848.0,0.307114]
[1721735540540,1.45794989,66849.0,66848.0,0.317114]
[1721735541593,1.50269195,66849.0,66848.0,0.317114]
[1721735542021,1.62552379,66849.0,66848.0,0.317114]
[1721735542719,1.58078173,66849.0,66848.0,0.317114]
[1721735544870,1.87996273,66849.0,66848.0,0.317114]
[1721735545083,2.00296273,66849.0,66848.0,0.19936607]
[1721735545295,2.04768801,66849.0,66848.0,0.15314986]
[1721735545498,2.00296273,66849.0,66848.0,0.15314986]
[1721735545913,2.09233537,66849.0,66848.0,0.15314986]
[1721735546127,2.09233537,66849.0,66839.0,0.000924]
[1721735546128,1.18389668,66840.0,66839.0,0.000924]
[1721735546361,1.18389668,66840.0,66820.0,0.000924]
[1721735546362,0.21551968,66821.0,66820.0,0.000924]
[1721735546571,0.21551968,66821.0,66820.0,0.14794391]
[1721735547808,0.21551968,66821.0,66820.0,0.16194391]
[1721735548254,0.21551968,66821.0,66820.0,0.46125391]
[1721735549178,0.21651968,66821.0,66820.0,0.47525391]
[1721735550243,0.22564213,66821.0,66820.0,0.47525391]
[1721735550455,0.2622583,66821.0,66820.0,0.47525391]
[1721735551947,0.22564213,66821.0,66820.0,0.47525391]
[1721735553022,0.17707553,66821.0,66820.0,0.47525391]
[1721735553474,0.05954518,66821.0,66820.0,0.47525391]
[1721735554529,0.09817553,66821.0,66820.0,0.47525391]
[1721735556431,0.05042273,66821.0,66820.0,0.47525391]
[1721735556865,0.001,66821.0,66820.0,0.55665391]
[1721735557724,0.001,66821.0,66820.0,0.47525391]
[1721735558179,0.19475364,66821.0,66820.0,0.47525391]
[1721735558385,0.31766579,66821.0,66820.0,0.47525391]
[1721735558819,0.24417637,66821.0,66820.0,0.47525391]
[1721735559030,0.17095308,66821.0,66820.0,0.47525391]
[1721735559679,0.21951968,66821.0,66820.0,0.47525391]
[1721735560734,0.51951968,66821.0,66820.0,0.47525391]
[1721735565409,0.53751968,66821.0,66820.0,0.47525391]
[1721735566627,0.53751968,66821.0,66820.0,0.328234]
[1721735566835,0.60216637,66821.0,66820.0,0.328234]
[1721735577966,0.75181937,66821.0,66820.0,0.328234]
[1721735578181,0.60216637,66821.0,66820.0,0.328234]
[1721735582870,0.45561968,66821.0,66820.0,0.390234]
[1721735583071,0.45561968,66821.0,66820.0,0.328234]
[1721735583526,0.53221968,66821.0,66820.0,0.328234]
[1721735584487,0.68187268,66821.0,66820.0,0.328234]
[1721735584715,0.67563742,66821.0,66820.0,0.328234]
[1721735587666,0.82529042,66821.0,66820.0,0.328234]
[1721735588282,0.67563742,66821.0,66820.0,0.328234]
[1721735588491,0.45561968,66821.0,66820.0,0.4070903]
[1721735588694,0.45561968,66821.0,66820.0,0.4687903]
[1721735588934,0.45561968,66821.0,66820.0,0.61581021]
[1721735589679,0.45561968,66821.0,66820.0,0.61591417]
[1721735589889,0.55392814,66821.0,66820.0,0.61591417]
[1721735590094,0.6211463,66821.0,66820.0,0.61591417]
[1721735590306,0.55392814,66821.0,66820.0,0.61591417]
[1721735590511,0.64355236,66821.0,66820.0,0.61591417]
[1721735591157,0.55392814,66821.0,66820.0,0.61591417]
[1721735591373,0.64355236,66821.0,66820.0,0.61591417]
[1721735591562,0.55392814,66821.0,66820.0,0.61591417]
[1721735592370,0.66595841,66821.0,66820.0,0.61591417]
[1721735592570,0.78388114,66821.0,66820.0,0.56296571]
[1721735593015,0.63422814,66821.0,66820.0,0.56296571]
[1721735593218,0.78388114,66821.0,66820.0,0.56296571]
[1721735593921,0.53591968,66821.0,66820.0,0.56296571]
[1721735594131,0.68557268,66821.0,66820.0,0.56296571]
[1721735594752,0.98487968,66821.0,66820.0,0.56296571]
[1721735595396,0.98487968,66821.0,66820.0,0.4159458]
[1721735595892,0.98487968,66821.0,66820.0,0.41661539]
[1721735596100,1.13184233,66821.0,66820.0,0.41661539]
[1721735598459,1.13184233,66821.0,66820.0,0.328234]
[1721735599001,1.43114933,66821.0,66820.0,0.328234]
[1721735599202,1.53114933,66821.0,66820.0,0.328234]
[1721735599384,1.83045633,66821.0,66820.0,0.328234]
[1721735599595,1.88045633,66821.0,66820.0,0.328234]
[1721735600047,1.87945633,66821.0,66820.0,0.300234]
[1721735600458,1.93045633,66821.0,66820.0,0.312234]
[1721735600727,1.95445633,66821.0,66820.0,0.326234]
[1721735600905,1.95345633,66821.0,66820.0,0.312234]
[1721735601114,2.49509722,66821.0,66820.0,0.19357735]
[1721735601329,0.58572068,66800.0,66799.0,0.000924]
[1721735601556,0.58572068,66800.0,66799.0,0.08897816]
[1721735601557,0.76152068,66800.0,66799.0,0.08897816]
[1721735601968,0.76152068,66800.0,66799.0,0.000924]
[1721735602410,0.87342468,66800.0,66799.0,0.000924]
[1721735602684,0.87345597,66800.0,66799.0,0.000924]
[1721735602915,0.35390328,66800.0,66799.0,0.000924]
[1721735603132,0.50460328,66800.0,66799.0,0.073724]
[1721735603582,0.50360328,66800.0,66799.0,0.064724]
[1721735603932,0.23661968,66800.0,66799.0,0.28864391]
[1721735604149,0.18805308,66800.0,66799.0,0.28864391]
[1721735604358,0.04942273,66800.0,66799.0,0.38863518]
[1721735604582,0.05042273,66800.0,66799.0,0.38863518]
[1721735605143,0.05142273,66800.0,66799.0,0.39362889]
[1721735605421,0.05142273,66800.0,66799.0,0.38162889]
[1721735605422,0.05042273,66800.0,66799.0,0.38162889]
[1721735605624,0.04942273,66800.0,66799.0,0.37662889]
[1721735606079,0.05042273,66800.0,66799.0,0.37662889]
[1721735606417,0.04942273,66800.0,66799.0,0.37662889]
[1721735606625,0.11260959,66800.0,66799.0,0.37662889]
[1721735606819,0.16317619,66800.0,66799.0,0.38662889]
[1721735607854,0.11360959,66800.0,66799.0,0.37662889]
[1721735608096,0.08905308,66800.0,66799.0,0.28864391]
[1721735608232,0.05142273,66800.0,66799.0,0.38310712]
[1721735609326,0.002,66800.0,66799.0,0.38310712]
[1721735609478,0.002,66800.0,66799.0,0.53424252]
[1721735609704,0.002,66800.0,66799.0,0.83364752]
[1721735609907,0.002,66800.0,66799.0,1.13305252]
[1721735610113,0.002,66800.0,66799.0,0.95105484]
[1721735610315,0.002,66800.0,66799.0,0.83364752]
[1721735610566,0.001,66800.0,66799.0,0.82764752]
[1721735611040,0.002,66800.0,66799.0,0.83764752]
[1721735611376,0.301,66800.0,66799.0,1.54382057]
[1721735611579,0.3,66800.0,66799.0,1.54382057]
[1721735612022,0.3,66800.0,66799.0,1.87859522]
[1721735612023,0.2344,66800.0,66799.0,1.87859522]
[1721735612248,0.2344,66800.0,66799.0,1.87917249]
[1721735612249,0.1678,66800.0,66799.0,1.87917249]
[1721735612424,0.16761993,66800.0,66799.0,1.86517249]
[1721735612561,0.16761993,66800.0,66799.0,2.66457749]
[1721735612764,0.16761993,66800.0,66799.0,2.67857749]
[1721735613104,0.16761993,66800.0,66799.0,2.37917249]
[1721735613970,0.16761993,66800.0,66799.0,2.17334123]
[1721735614082,0.16761993,66800.0,66799.0,2.37965352]
[1721735614289,0.16761993,66800.0,66799.0,1.87907625]
[1721735614497,0.16761993,66800.0,66799.0,1.57823785]
[1721735614725,0.16761993,66800.0,66799.0,1.5668682]
[1721735614921,0.16761993,66800.0,66799.0,0.8183562]
[1721735616434,0.16761993,66800.0,66799.0,0.70054232]
[1721735617038,0.16761993,66800.0,66799.0,0.7045362]
[1721735617243,0.16761993,66800.0,66799.0,0.6905362]
[1721735618019,0.16661993,66800.0,66799.0,0.6805362]
[1721735618615,0.16661993,66800.0,66799.0,0.6945362]
[1721735619242,0.16661993,66800.0,66799.0,0.7085362]
[1721735619444,0.21604266,66800.0,66799.0,0.5678362]
[1721735619867,0.21604266,66800.0,66799.0,0.5538362]
[1721735620290,0.21604266,66800.0,66799.0,0.55417157]
[1721735620519,0.21604266,66800.0,66799.0,0.56817157]
[1721735620730,0.16661993,66800.0,66799.0,0.56817157]
[1721735620927,0.16661993,66800.0,66799.0,0.86337357]
[1721735621149,0.16661993,66800.0,66799.0,1.16277857]
[1721735621396,0.16661993,66800.0,66799.0,1.13477857]
[1721735621838,0.16761993,66800.0,66799.0,1.14877857]
[1721735622274,0.16761993,66800.0,66799.0,1.44961697]
[1721735622474,0.16761993,66800.0,66799.0,1.56700208]
[1721735622705,0.16761993,66800.0,66799.0,1.86640708]
[1721735622905,0.16761993,66800.0,66799.0,1.878354]
[1721735623035,0.16761993,66800.0,66799.0,1.66814123]
[1721735623241,0.16761993,66800.0,66799.0,1.87353818]
[1721735623439,0.16761993,66800.0,66799.0,1.88753818]
[1721735623862,0.16761993,66800.0,66799.0,1.87353818]
[1721735624238,0.16761993,66800.0,66799.0,1.88753818]
[1721735626450,0.16761993,66800.0,66799.0,1.88813565]
[1721735627337,0.16761993,66800.0,66799.0,1.88755838]
[1721735627499,0.16761993,66800.0,66799.0,1.88813565]
[1721735627701,0.16761993,66800.0,66799.0,1.87618873]
[1721735627927,0.16761993,66800.0,66799.0,1.88813565]
[1721735629545,0.16761993,66800.0,66799.0,1.88822884]
[1721735631203,0.16761993,66800.0,66799.0,1.87628192]
[1721735632577,0.16761993,66800.0,66799.0,1.37078931]
[1721735632907,0.16761993,66800.0,66799.0,1.58823969]
[1721735634120,0.16761993,66800.0,66799.0,1.57543664]
[1721735635631,0.16761993,66800.0,66799.0,1.57931653]
[1721735636235,0.16761993,66800.0,66799.0,1.5793136]
[1721735636880,0.16761993,66800.0,66799.0,1.2799086]
[1721735637324,0.16761993,66800.0,66799.0,0.9805036]
[1721735637771,0.16761993,66800.0,66799.0,0.8308016]
[1721735637984,0.16761993,66800.0,66799.0,0.6853016]
[1721735638974,0.16845993,66800.0,66799.0,0.59476573]
[1721735639184,0.16845993,66800.0,66799.0,0.68495115]
[1721735642143,0.16845993,66800.0,66799.0,0.68577625]
[1721735643024,0.16845993,66800.0,66799.0,0.47534391]
[1721735643222,0.16845993,66800.0,66799.0,0.68584111]
[1721735643420,0.16845993,66800.0,66799.0,0.97387651]
[1721735643626,0.16845993,66800.0,66799.0,1.27184811]
[1721735645029,0.16845993,66800.0,66799.0,0.82274111]
[1721735645242,0.16845993,66800.0,66799.0,0.47534391]
[1721735645439,0.16845993,66800.0,66799.0,0.68451259]
[1721735645868,0.16845993,66800.0,66799.0,0.83421459]
[1721735648403,0.16845993,66800.0,66799.0,0.47534391]
[1721735648603,0.16845993,66800.0,66799.0,0.68474646]
[1721735653238,0.16845993,66800.0,66799.0,0.74657986]
[1721735654433,0.16845993,66800.0,66799.0,0.82707986]
[1721735654646,0.16845993,66800.0,66799.0,0.61767731]
[1721735654802,0.16845993,66800.0,66799.0,0.8264669]
[1721735655252,0.16845993,66800.0,66799.0,0.8250335]
[1721735657084,0.16845993,66800.0,66799.0,0.9761689]
[1721735657289,0.16845993,66800.0,66799.0,0.9747355]
[1721735657880,0.16845993,66800.0,66799.0,0.97540543]
[1721735658083,0.16845993,66800.0,66799.0,0.97541696]
[1721735660106,0.16845993,66800.0,66799.0,0.97685036]
[1721735660303,0.16845993,66800.0,66799.0,1.06375036]
[1721735660923,0.16845993,66800.0,66799.0,0.77171496]
[1721735661128,0.16845993,66800.0,66799.0,0.77181448]
[1721735662353,0.16845993,66800.0,66799.0,0.77181448]
[1721735663454,0.16845993,66800.0,66799.0,0.77324788]
[1721735663654,0.16845993,66800.0,66799.0,1.37822453]
[1721735663855,0.16845993,66800.0,66799.0,1.67762953]
[1721735664083,0.16845993,66800.0,66799.0,1.9776118]
[1721735664295,0.16845993,66800.0,66799.0,1.97726501]
[1721735665128,0.16845993,66800.0,66799.0,2.02218455]
[1721735665332,0.16845993,66800.0,66799.0,2.32158955]
[1721735665541,0.16845993,66800.0,66799.0,2.27667001]
[1721735665738,0.16845993,66800.0,66799.0,2.83146049]
[1721735665984,0.16845993,66800.0,66799.0,2.27667001]
[1721735666195,0.16845993,66800.0,66799.0,2.40707001]
[1721735666825,0.16845993,66800.0,66799.0,2.98434118]
[1721735667182,0.16845993,66800.0,66799.0,2.8945021]
[1721735667372,0.16845993,66800.0,66799.0,2.8793213]
[1721735667582,0.16745993,66800.0,66799.0,2.95513948]
[1721735667981,0.16845993,66800.0,66799.0,2.98313948]
[1721735668184,0.16845993,66800.0,66799.0,2.9163213]
[1721735668396,0.16845993,66800.0,66799.0,3.02855251]
[1721735668598,0.16845993,66800.0,66799.0,2.9163213]
[1721735669002,0.16845993,66800.0,66799.0,3.0285543]
[1721735669893,0.16845993,66800.0,66799.0,2.9163213]
[1721735670098,0.16845993,66800.0,66799.0,3.02853531]
[1721735670549,0.16845993,66800.0,66799.0,3.02916523]
[1721735670756,0.16845993,66800.0,66799.0,2.91696923]
[1721735671227,0.16845993,66800.0,66799.0,3.02916569]
[1721735671655,0.16845993,66800.0,66799.0,2.82045153]
[1721735671848,0.16845993,66800.0,66799.0,3.02925982]
[1721735672407,0.16845993,66800.0,66799.0,2.91706336]
[1721735672613,0.16845993,66800.0,66799.0,3.02924787]
[1721735672832,0.16845993,66800.0,66799.0,2.91706336]
[1721735673478,0.16845993,66800.0,66799.0,3.31646836]
[1721735673680,0.16845993,66800.0,66799.0,3.31662099]
[1721735676553,0.04943907,66817.0,66799.0,3.31662099]
[1721735676554,0.04943907,66817.0,66816.0,1.20335405]
[1721735676767,0.04943907,66817.0,66816.0,2.07651189]
[1721735676962,0.018,66821.0,66820.0,1.0490214]
[1721735677164,0.018,66821.0,66820.0,1.70485924]
[1721735677578,0.018,66821.0,66820.0,1.71622889]
[1721735678004,0.018,66821.0,66820.0,1.85362889]
[1721735678138,0.018,66821.0,66820.0,1.85420616]
[1721735678557,0.018,66821.0,66820.0,1.41811484]
[1721735678760,0.018,66821.0,66820.0,0.83086249]
[1721735679597,0.018,66821.0,66820.0,1.13017349]
[1721735679810,0.018,66821.0,66820.0,0.93466556]
[1721735680154,0.018,66821.0,66820.0,1.12857864]
[1721735680334,0.018,66821.0,66820.0,1.11457864]
[1721735680543,0.018,66821.0,66820.0,1.12857864]
[1721735680735,0.018,66821.0,66820.0,1.14257864]
[1721735681054,0.018,66821.0,66820.0,1.12857864]
[1721735681193,0.018,66821.0,66820.0,1.41388964]
[1721735681397,0.018,66821.0,66820.0,1.42788964]
[1721735682015,0.018,66821.0,66820.0,1.44188964]
[1721735682223,0.018,66821.0,66820.0,1.44332304]
[1721735682850,0.018,66821.0,66820.0,1.72863404]
[1721735683289,0.018,66821.0,66820.0,1.74263404]
[1721735683775,0.018,66821.0,66820.0,1.72863404]
[1721735684333,0.018,66821.0,66820.0,1.71463404]
[1721735684750,0.018,66821.0,66820.0,1.72863404]
[1721735684935,0.018,66821.0,66820.0,1.74263404]
[1721735686123,0.018,66821.0,66820.0,1.74141833]
[1721735687489,0.018,66821.0,66820.0,1.73998493]
[1721735687695,0.018,66821.0,66820.0,1.42930428]
[1721735688338,0.018,66821.0,66820.0,1.52757393]
[1721735689291,0.018,66821.0,66820.0,1.52838865]
[1721735690583,0.018,66821.0,66820.0,1.517019]
[1721735690782,0.018,66821.0,66820.0,1.52838865]
[1721735692221,0.018,66821.0,66820.0,1.517019]
[1721735692428,0.018,66821.0,66820.0,1.21791765]
[1721735692645,0.25085308,66821.0,66820.0,0.56356392]
[1721735693538,0.25085308,66821.0,66820.0,0.54956392]
[1721735693969,0.25085308,66821.0,66820.0,0.56356392]
[1721735694173,0.25085308,66821.0,66820.0,0.54956392]
[1721735694460,0.25085308,66821.0,66820.0,0.53556392]
[1721735694664,0.25085308,66821.0,66820.0,0.54956392]
[1721735695088,0.25085308,66821.0,66820.0,0.53556392]
[1721735695316,0.21222273,66821.0,66820.0,0.53556392]
[1721735695531,0.21222273,66821.0,66820.0,0.54990085]
[1721735695532,0.1628,66821.0,66820.0,0.54990085]
[1721735695717,0.018,66821.0,66820.0,0.54990085]
[1721735695897,0.018,66821.0,66820.0,0.81835999]
[1721735696100,0.018,66821.0,66820.0,0.83235999]
[1721735696506,0.018,66821.0,66820.0,0.81835999]
[1721735696712,0.018,66821.0,66820.0,0.66870499]
[1721735696920,0.018,66821.0,66820.0,0.81835999]
[1721735697389,0.018,66821.0,66820.0,0.83212406]
[1721735697599,0.018,66821.0,66820.0,0.81786769]
[1721735697964,0.018,66821.0,66820.0,0.83186769]
[1721735698615,0.018,66821.0,66820.0,0.8314778]
[1721735699363,0.018,66821.0,66820.0,0.6818228]
[1721735701747,0.018,66821.0,66820.0,1.89088868]
[1721735701967,0.018,66821.0,66820.0,1.91388868]
[1721735702823,0.018,66821.0,66820.0,1.79695078]
[1721735703031,0.018,66821.0,66820.0,1.90036416]
[1721735703228,0.018,66821.0,66820.0,1.91436416]
[1721735703430,0.018,66821.0,66820.0,1.69229823]
[1721735703818,0.018,66821.0,66820.0,1.70629823]
[1721735704998,0.018,66821.0,66820.0,1.69229823]
[1721735705204,0.018,66821.0,66820.0,1.69028756]
[1721735705430,0.018,66821.0,66820.0,1.70572096]
[1721735705787,0.018,66821.0,66820.0,1.70629823]
[1721735705991,0.01884,66821.0,66820.0,1.70629823]
[1721735706470,0.01884,66821.0,66820.0,1.91495746]
[1721735707979,0.01884,66821.0,66820.0,1.91412857]
[1721735708786,0.01884,66821.0,66820.0,1.9232074]
[1721735709157,0.01884,66821.0,66820.0,1.8891179]
[1721735709359,0.01884,66821.0,66820.0,1.7411179]
[1721735709560,0.01884,66821.0,66820.0,1.72974825]
[1721735711086,0.01884,66821.0,66820.0,1.7411179]
[1721735711290,0.01884,66821.0,66820.0,1.72974825]
[1721735711607,0.01884,66821.0,66820.0,1.7411179]
[1721735711808,0.01884,66821.0,66820.0,1.74160441]
[1721735711968,0.01884,66821.0,66820.0,1.74303781]
[1721735712571,0.01884,66821.0,66820.0,2.71372608]
[1721735712785,0.01884,66821.0,66820.0,2.86909461]
[1721735712979,0.01884,66821.0,66820.0,2.96909461]
[1721735713758,0.01884,66821.0,66820.0,2.95509461]
[1721735714055,0.01884,66821.0,66820.0,2.96909461]
[1721735714822,0.01884,66821.0,66820.0,2.95509461]
[1721735715227,0.01884,66821.0,66820.0,2.9554116]
[1721735715834,0.01884,66821.0,66820.0,2.9694116]
[1721735716535,0.01884,66821.0,66820.0,3.39086993]
[1721735716728,0.01884,66821.0,66820.0,3.30128394]
[1721735717428,0.01884,66821.0,66820.0,3.28728394]
[1721735717628,0.01884,66821.0,66820.0,3.30128394]
[1721735718028,0.01884,66821.0,66820.0,3.28728394]
[1721735718380,0.01884,66821.0,66820.0,3.27328394]
[1721735718508,0.01884,66821.0,66820.0,2.17034013]
[1721735721316,0.01884,66821.0,66820.0,2.59182221]
[1721735721742,0.01884,66821.0,66820.0,2.59182638]
[1721735721947,0.01884,66821.0,66820.0,2.0149716]
[1721735722222,0.01884,66821.0,66820.0,2.50220647]
[1721735722422,0.01884,66821.0,66820.0,2.59181963]
[1721735724441,0.01884,66821.0,66820.0,2.50220647]
[1721735724700,0.01884,66821.0,66820.0,2.56940428]
[1721735725072,0.01884,66821.0,66820.0,2.56940383]
[1721735725639,0.01884,66821.0,66820.0,2.63154646]
[1721735726080,0.01884,66821.0,66820.0,2.93085746]
[1721735726282,0.01884,66821.0,66820.0,2.86366175]
[1721735726965,0.01884,66821.0,66820.0,2.93084744]
[1721735727189,0.01884,66821.0,66820.0,2.86366175]
[1721735727379,0.01884,66821.0,66820.0,2.9308558]
[1721735727821,0.01884,66821.0,66820.0,2.86366175]
[1721735728201,0.01884,66821.0,66820.0,2.85935149]
[1721735728412,0.01884,66821.0,66820.0,2.92654249]
[1721735728804,0.71884,66821.0,66820.0,2.92654249]
[1721735730902,0.71884,66821.0,66820.0,2.59466745]
[1721735731311,0.71884,66821.0,66820.0,2.59520233]
[1721735731987,0.71884,66821.0,66820.0,2.92707541]
[1721735732446,0.71884,66821.0,66820.0,2.59520233]
[1721735733286,0.71884,66821.0,66820.0,2.92707541]
[1721735733488,0.71884,66821.0,66820.0,2.59520233]
[1721735734308,0.71884,66821.0,66820.0,3.01397399]
[1721735734509,0.71884,66821.0,66820.0,2.68348515]
[1721735737645,0.71884,66821.0,66820.0,2.6834807]
[1721735738035,0.71884,66821.0,66820.0,3.01535167]
[1721735739298,0.09684,66821.0,66820.0,3.31466267]
[1721735739498,0.09684,66821.0,66820.0,3.24747361]
[1721735739916,0.09684,66821.0,66820.0,3.34111398]
[1721735740291,0.09684,66821.0,66820.0,3.35945614]
[1721735740520,0.09684,66821.0,66820.0,3.34111444]
[1721735740731,0.09684,66821.0,66820.0,2.50344272]
[1721735740956,0.09684,66821.0,66820.0,3.03405315]
[1721735741170,0.09684,66821.0,66820.0,3.05240673]
[1721735741389,0.09684,66821.0,66820.0,3.55240673]
[1721735741591,0.09684,66821.0,66820.0,3.44041232]
[1721735741965,0.09684,66821.0,66820.0,2.94041232]
[1721735742167,0.09684,66821.0,66820.0,3.44041232]
[1721735742570,0.09684,66821.0,66820.0,2.85351232]
[1721735742896,0.09684,66821.0,66820.0,3.03002967]
[1721735743113,0.09684,66821.0,66820.0,2.94041232]
[1721735743404,0.09684,66821.0,66820.0,3.03002967]
[1721735743841,0.09684,66821.0,66820.0,2.96792577]
[1721735744057,0.09684,66821.0,66820.0,3.03006743]
[1721735744284,0.09684,66821.0,66820.0,3.53006743]
[1721735744664,0.09684,66821.0,66820.0,3.44044429]
[1721735744898,0.09684,66821.0,66820.0,2.94044429]
[1721735745227,0.09684,66821.0,66820.0,3.44044429]
[1721735746442,0.09684,66821.0,66820.0,3.55247321]
[1721735747075,0.09684,66821.0,66820.0,3.5539321]
[1721735747454,0.09684,66821.0,66820.0,3.44181244]
[1721735750086,0.09684,66821.0,66820.0,2.04835237]
[1721735750287,0.09684,66821.0,66820.0,2.40246641]
[1721735750538,0.09684,66821.0,66820.0,2.48936641]
[1721735750825,0.09684,66821.0,66820.0,2.60156177]
[1721735751205,0.09684,66821.0,66820.0,2.48936641]
[1721735751407,0.09684,66821.0,66820.0,2.55668905]
[1721735752647,0.09684,66821.0,66820.0,2.48936641]
[1721735753026,0.09684,66821.0,66820.0,2.48793301]
[1721735753224,0.09684,66821.0,66820.0,2.39539289]
[1721735753402,0.09684,66821.0,66820.0,2.48874291]
[1721735753602,0.09684,66821.0,66820.0,2.49017631]
[1721735755600,0.09684,66821.0,66820.0,2.57995476]
[1721735755926,0.24424,66821.0,66820.0,1.33208644]
[1721735756140,0.24424,66821.0,66820.0,0.69290372]
[1721735756356,0.24424,66821.0,66820.0,0.69338883]
[1721735756952,0.24424,66821.0,66820.0,0.67938883]
[1721735756953,0.29366273,66821.0,66820.0,0.67938883]
[1721735757218,0.33229308,66821.0,66820.0,0.67938883]
[1721735757492,0.33229308,66821.0,66820.0,0.69338883]
[1721735757665,0.33229308,66821.0,66820.0,0.67938883]
[1721735757666,0.29366273,66821.0,66820.0,0.67938883]
[1721735757869,0.33229308,66821.0,66820.0,0.67938883]
[1721735758018,0.33229308,66821.0,66820.0,0.55535974]
[1721735759056,0.33229308,66821.0,66820.0,0.54135974]
[1721735759582,0.29366273,66821.0,66820.0,0.55535974]
[1721735759719,0.33229308,66821.0,66820.0,0.55535974]
[1721735759923,0.29366273,66821.0,66820.0,0.55535974]
[1721735761025,0.29366273,66821.0,66820.0,0.56935974]